fUST/lending_fUST_20251011
["ID","MTS","AMOUNT","RATE_DAILY","PERIOD"]
[390787983,1760152248675,-516.44936112,0.00029623,9]
[390787984,1760152248685,-4163.42,0.00029623,9]
[390787985,1760152248694,-500.0,0.00029623,9]
[390787986,1760152248703,-500.0,0.00029623,9]
[390787987,1760152248712,-500.0,0.00029623,9]
[390787988,1760152248721,-762.26,0.00029623,9]
[390787989,1760152248731,-1171.92,0.00029623,9]
[390787990,1760152248740,-500.0,0.00029623,9]
[390787991,1760152248749,-604.83788829,0.00029623,9]
[390787992,1760152248759,-500.0,0.00029623,9]
[390787993,1760152248768,-1598.31,0.00029623,9]
[390787994,1760152248778,-938.02,0.00029623,9]
[390787995,1760152248787,-561.58,0.00029623,9]
[390787996,1760152248797,-500.0,0.00029623,9]
[390787997,1760152248806,-645.14,0.00029623,9]
[390787998,1760152248815,-500.0,0.00029623,9]
[390787999,1760152248825,-500.0,0.00029623,9]
[390788000,1760152248835,-500.0,0.00029623,9]
[390788001,1760152248846,-500.0,0.00029623,9]
[390788002,1760152248855,-500.0,0.00029623,9]
[390788003,1760152248864,-500.0,0.00029623,9]
[390788004,1760152248874,-500.0,0.00029623,9]
[390788005,1760152248883,-500.0,0.00029623,9]
[390788006,1760152248892,-518.21137698,0.00029623,9]
[390788007,1760152248901,-500.0,0.00029623,9]
[390788008,1760152248911,-500.0,0.00029623,9]
[390788009,1760152248923,-500.0,0.00029623,9]
[390788010,1760152248932,-500.0,0.00029623,9]
[390788011,1760152248942,-500.0,0.00029623,9]
[390788012,1760152248952,-806.53,0.00029623,9]
[390788013,1760152248961,-500.0,0.00029623,9]
[390788014,1760152248970,-543.05,0.00029623,9]
[390788015,1760152248980,-500.0,0.00029623,9]
[390788016,1760152248990,-500.0,0.00029623,9]
[390788017,1760152248999,-500.0,0.00029623,9]
[390788018,1760152249008,-1436.19,0.00029623,9]
[390788019,1760152249018,-624.0,0.00029623,9]
[390788020,1760152249028,-500.0,0.00029623,9]
[390788021,1760152249037,-500.0,0.00029623,9]
[390788022,1760152249046,-155.680968,0.00029624,30]
[390788023,1760152249055,-155.680968,0.00029624,14]
[390788024,1760152249065,-158.582574,0.00029624,14]
[390788025,1760152249074,-500.0,0.00029629,9]
[390788026,1760152249084,-500.0,0.00029629,9]
[390788027,1760152249094,-500.0,0.00029629,9]
[390788028,1760152249103,-586.66,0.00029629,9]
[390788029,1760152249112,-586.66,0.00029629,9]
[390788030,1760152249121,-586.66,0.00029629,9]
[390788031,1760152249131,-155.680968,0.00029648,30]
[390788032,1760152249140,-158.582574,0.00029648,30]
[390788033,1760152249149,-500.0,0.00029655,9]
[390788034,1760152249158,-525.44239338,0.00029655,9]
[390788035,1760152249172,-502.62135688,0.00029655,9]
[390788036,1760152249181,-14955.01,0.00029655,9]
[390788037,1760152249191,-14955.01,0.00029655,9]
[390788038,1760152249200,-14955.01,0.00029655,9]
[390788039,1760152249210,-579.18,0.00029655,9]
[390788040,1760152249219,-579.18,0.00029655,9]
[390788041,1760152249228,-579.18,0.00029655,9]
[390788042,1760152249237,-500.0,0.00029655,9]
[390788043,1760152249247,-500.0,0.00029655,9]
[390788044,1760152249256,-500.0,0.00029655,9]
[390788045,1760152249265,-11667.65,0.00029655,9]
[390788046,1760152249275,-11667.65,0.00029655,9]
[390788047,1760152249284,-11667.65,0.00029655,9]
[390788048,1760152249294,-1340.62,0.00029655,9]
[390788049,1760152249303,-1340.62,0.00029655,9]
[390788050,1760152249313,-1340.62,0.00029655,9]
[390788051,1760152249322,-2552.38,0.00029655,9]
[390788052,1760152249331,-2552.38,0.00029655,9]
[390788053,1760152249340,-2552.38,0.00029655,9]
[390788054,1760152249349,-946.49,0.00029655,9]
[390788055,1760152249359,-946.49,0.00029655,9]
[390788056,1760152249368,-946.49,0.00029655,9]
[390788057,1760152249377,-687.62,0.00029655,9]
[390788058,1760152249386,-687.62,0.00029655,9]
[390788059,1760152249396,-687.62,0.00029655,9]
[390788060,1760152249405,-3513.33,0.00029655,9]
[390788061,1760152249415,-3513.33,0.00029655,9]
[390788062,1760152249425,-3513.33,0.00029655,9]
[390788063,1760152249434,-525.39,0.00029655,9]
[390788064,1760152249443,-525.39,0.00029655,9]
[390788065,1760152249452,-525.39,0.00029655,9]
[390788066,1760152249461,-1469.94,0.00029655,9]
[390788067,1760152249471,-2796.66,0.00029655,9]
[390788068,1760152249480,-1469.94,0.00029655,9]
[390788069,1760152249490,-2796.66,0.00029655,9]
[390788070,1760152249502,-1469.94,0.00029655,9]
[390788071,1760152249512,-2796.66,0.00029655,9]
[390788072,1760152249524,-2630.14,0.00029655,9]
[390788073,1760152249631,-2630.14,0.00029655,9]
[390788074,1760152249641,-2630.14,0.00029655,9]
[390788075,1760152249651,-1173.84,0.00029655,9]
[390788076,1760152249660,-1173.84,0.00029655,9]
[390788077,1760152249672,-1173.84,0.00029655,9]
[390788078,1760152249681,-500.0,0.00029655,9]
[390788079,1760152249691,-500.0,0.00029655,9]
[390788080,1760152249700,-500.0,0.00029655,9]
[390788081,1760152249709,-1518.45,0.00029655,9]
[390788082,1760152249718,-1518.45,0.00029655,9]
[390788083,1760152249728,-1518.45,0.00029655,9]
[390788084,1760152249737,-1768.71,0.00029655,9]
[390788085,1760152249747,-1768.71,0.00029655,9]
[390788086,1760152249756,-1768.71,0.00029655,9]
[390788087,1760152249766,-1607.97,0.00029655,9]
[390788088,1760152249775,-1607.97,0.00029655,9]
[390788089,1760152249784,-1607.97,0.00029655,9]
[390788090,1760152249795,-1978.35,0.00029655,9]
[390788091,1760152249804,-1978.35,0.00029655,9]
[390788092,1760152249813,-1978.35,0.00029655,9]
[390788093,1760152249823,-913.96,0.00029655,9]
[390788094,1760152249832,-913.96,0.00029655,9]
[390788095,1760152249842,-913.96,0.00029655,9]
[390788096,1760152249852,-4817.2,0.00029655,9]
[390788097,1760152249861,-4817.2,0.00029655,9]
[390788098,1760152249871,-4817.2,0.00029655,9]
[390788099,1760152249880,-1526.61,0.00029655,9]
[390788100,1760152249890,-1526.61,0.00029655,9]
[390788101,1760152249900,-1526.61,0.00029655,9]
[390788102,1760152249909,-500.0,0.00029655,9]
[390788103,1760152249922,-491.32978067,0.00029655,9]
[390788104,1760152249931,-743.19,0.00029656,9]
[390788105,1760152249941,-500.0,0.00029656,9]
[390788106,1760152249950,-500.0,0.00029656,9]
[390788107,1760152249960,-500.0,0.00029656,9]
[390788108,1760152249970,-500.0,0.00029656,9]
[390788109,1760152249979,-737.64,0.00029656,9]
[390788110,1760152249989,-1085.3,0.00029656,9]
[390788111,1760152249998,-2959.4,0.00029656,9]
[390788112,1760152250008,-500.0,0.00029656,9]
[390788113,1760152250018,-846.3,0.00029656,9]
[390788114,1760152250027,-938.23,0.00029656,9]
[390788115,1760152250036,-500.0,0.00029656,9]
[390788116,1760152250045,-500.0,0.00029656,9]
[390788117,1760152250055,-500.0,0.00029656,9]
[390788118,1760152250064,-500.0,0.00029656,9]
[390788119,1760152250072,-500.0,0.00029656,9]
[390788120,1760152250081,-500.0,0.00029656,9]
[390788121,1760152250090,-594.07,0.00029656,9]
[390788122,1760152250100,-500.0,0.00029656,9]
[390788123,1760152250109,-500.65716992,0.00029656,9]
[390788124,1760152250118,-500.0,0.00029656,9]
[390788125,1760152250133,-500.0,0.00029656,9]
[390788126,1760152250145,-500.0,0.00029656,9]
[390788127,1760152250154,-1491.33,0.00029656,9]
[390788128,1760152250164,-500.0,0.00029656,9]
[390788129,1760152250174,-500.0,0.00029656,9]
[390788130,1760152250183,-541.23,0.00029656,9]
[390788131,1760152250192,-1469.56,0.00029656,9]
[390788132,1760152250202,-500.0,0.00029656,9]
[390788133,1760152250211,-795.05,0.00029656,9]
[390788134,1760152250220,-500.0,0.00029656,9]
[390788135,1760152250230,-989.69,0.00029656,9]
[390788136,1760152250239,-500.0,0.00029656,9]
[390788137,1760152250248,-500.34862989,0.00029656,9]
[390788138,1760152250257,-500.0,0.00029656,9]
[390788139,1760152250267,-500.0,0.00029656,9]
[390788140,1760152250276,-500.0,0.00029656,9]
[390788141,1760152250286,-500.0,0.00029656,9]
[390788142,1760152250295,-500.0,0.00029656,9]
[390788143,1760152250304,-500.0,0.00029656,9]
[390788144,1760152250314,-500.0,0.00029656,9]
[390788145,1760152250323,-599.4213061,0.00029656,9]
[390788146,1760152250331,-500.0,0.00029656,9]
[390788147,1760152250341,-500.0,0.00029656,9]
[390788148,1760152250350,-985.61,0.00029656,9]
[390788149,1760152250359,-500.0,0.00029656,9]
[390788150,1760152250368,-687.43,0.00029656,9]
[390788151,1760152250377,-500.0,0.00029656,9]
[390788152,1760152250387,-500.0,0.00029656,9]
[390788153,1760152250396,-2313.75,0.00029656,9]
[390788154,1760152250405,-500.0,0.00029656,9]
[390788155,1760152250415,-500.0,0.00029656,9]
[390788156,1760152250425,-500.0,0.00029656,9]
[390788157,1760152250434,-500.0,0.00029656,9]
[390788158,1760152250443,-649.21205744,0.00029656,9]
[390788159,1760152250452,-500.0,0.00029656,9]
[390788160,1760152250461,-500.0,0.00029656,9]
[390788161,1760152250471,-500.0,0.00029656,9]
[390788162,1760152250480,-793.09,0.00029656,9]
[390788163,1760152250489,-500.0,0.00029656,9]
[390788164,1760152250500,-500.0,0.00029656,9]
[390788165,1760152250510,-517.06328717,0.00029656,9]
[390788166,1760152250523,-500.0,0.00029656,9]
[390788167,1760152250532,-500.0,0.00029656,9]
[390788168,1760152250542,-500.38081171,0.00029656,9]
[390788169,1760152250551,-413.94432064,0.00029656,9]
[390788170,1760152250562,-1954.09,0.00029656,9]
[390788171,1760152250571,-500.0,0.00029656,9]
[390788172,1760152250579,-461.8125418,0.00029656,9]
[390788173,1760152250589,-500.0,0.00029656,9]
[390788174,1760152250598,-500.0,0.00029656,9]
[390788175,1760152250608,-500.0,0.00029656,9]
[390788176,1760152250618,-500.16380491,0.00029656,9]
[390788177,1760152250627,-500.0,0.00029656,9]
[390788178,1760152250636,-535.19,0.00029656,9]
[390788179,1760152250646,-500.0,0.00029656,9]
[390788180,1760152250655,-1015.25,0.00029656,9]
[390788181,1760152250667,-500.0,0.00029656,9]
[390788182,1760152250676,-500.0,0.00029656,9]
[390788183,1760152250685,-500.0,0.00029656,9]
[390788184,1760152250694,-500.0,0.00029656,9]
[390788185,1760152250703,-500.0,0.00029656,9]
[390788186,1760152250714,-500.0,0.00029656,9]
[390788187,1760152250728,-500.0,0.00029656,9]
[390788188,1760152250737,-482.02591788,0.00029656,9]
[390788189,1760152250747,-500.0,0.00029656,9]
[390788190,1760152250756,-500.0,0.00029656,9]
[390788191,1760152250766,-500.0,0.00029656,9]
[390788192,1760152250778,-500.0,0.00029656,9]
[390788193,1760152250788,-500.0,0.00029656,9]
[390788194,1760152250797,-500.0,0.00029656,9]
[390788195,1760152250806,-500.0,0.00029656,9]
[390788196,1760152250816,-729.77,0.00029656,9]
[390788197,1760152250825,-500.0,0.00029656,9]
[390788198,1760152250834,-500.0,0.00029656,9]
[390788199,1760152250843,-3144.45,0.00029656,9]
[390788200,1760152250852,-500.0,0.00029656,9]
[390788201,1760152250861,-500.0,0.00029656,9]
[390788202,1760152250870,-515.53012852,0.00029656,9]
[390788203,1760152250879,-500.0,0.00029656,9]
[390788204,1760152250888,-500.0,0.00029656,9]
[390788205,1760152250897,-500.0,0.00029656,9]
[390788206,1760152250906,-500.0,0.00029656,9]
[390788207,1760152250918,-500.0,0.00029656,9]
[390788208,1760152250927,-500.0,0.00029656,9]
[390788209,1760152250935,-500.0,0.00029656,9]
[390788210,1760152250944,-500.0,0.00029656,9]
[390788211,1760152250953,-1191.51,0.00029656,9]
[390788212,1760152250963,-500.0,0.00029656,9]
[390788213,1760152250972,-500.0,0.00029656,9]
[390788214,1760152250981,-500.0,0.00029656,9]
[390788215,1760152250990,-610.0,0.00029656,9]
[390788216,1760152250998,-859.22,0.00029656,9]
[390788217,1760152251008,-500.0,0.00029656,9]
[390788218,1760152251017,-500.0,0.00029656,9]
[390788219,1760152251026,-500.0,0.00029656,9]
[390788220,1760152251035,-500.0,0.00029656,9]
[390788221,1760152251044,-508.88140827,0.00029656,9]
[390788222,1760152251053,-500.0,0.00029656,9]
[390788223,1760152251062,-500.0,0.00029656,9]
[390788224,1760152251071,-500.0,0.00029656,9]
[390788225,1760152251080,-1373.1,0.00029656,9]
[390788226,1760152251088,-500.0,0.00029656,9]
[390788227,1760152251098,-514.68,0.00029656,9]
[390788228,1760152251106,-500.0,0.00029656,9]
[390788229,1760152251115,-500.0,0.00029656,9]
[390788230,1760152251124,-500.0,0.00029656,9]
[390788231,1760152251133,-500.0,0.00029656,9]
[390788232,1760152251142,-500.0,0.00029656,9]
[390788233,1760152251151,-500.0,0.00029656,9]
[390788234,1760152251160,-500.0,0.00029656,9]
[390788235,1760152251171,-749.49,0.00029656,9]
[390788236,1760152251180,-500.0,0.00029656,9]
[390788237,1760152251189,-500.0,0.00029656,9]
[390788238,1760152251295,-500.0,0.00029656,9]
[390788239,1760152251305,-3220.75,0.00029656,9]
[390788240,1760152251314,-500.0,0.00029656,9]
[390788241,1760152251324,-500.0,0.00029656,9]
[390788242,1760152251333,-500.0,0.00029656,9]
[390788243,1760152251342,-500.0,0.00029656,9]
[390788244,1760152251351,-500.0,0.00029656,9]
[390788245,1760152251360,-920.16,0.00029656,9]
[390788246,1760152251369,-500.0,0.00029656,9]
[390788247,1760152251378,-500.0,0.00029656,9]
[390788248,1760152251387,-500.0,0.00029656,9]
[390788249,1760152251396,-500.0,0.00029656,9]
[390788250,1760152251407,-1350.0,0.00029656,9]
[390788251,1760152251418,-951.95,0.00029656,9]
[390788252,1760152251428,-500.0,0.00029656,9]
[390788253,1760152251437,-500.0,0.00029656,9]
[390788254,1760152251446,-500.0,0.00029656,9]
[390788255,1760152251455,-500.0,0.00029656,9]
[390788256,1760152251464,-257.37651787,0.00029656,9]
[390788257,1760152251474,-500.0,0.00029656,9]
[390788258,1760152251484,-500.0,0.00029656,9]
[390788259,1760152251493,-500.0,0.00029656,9]
[390788260,1760152251502,-484.88811084,0.00029656,9]
[390788261,1760152251513,-500.0,0.00029656,9]
[390788262,1760152251523,-500.0,0.00029656,9]
[390788263,1760152251534,-500.0,0.00029656,9]
[390788264,1760152251543,-500.0,0.00029656,9]
[390788265,1760152251552,-500.0,0.00029656,9]
[390788266,1760152251560,-500.0,0.00029656,9]
[390788267,1760152251571,-500.0,0.00029656,9]
[390788268,1760152251581,-500.0,0.00029656,9]
[390788269,1760152251590,-500.0,0.00029656,9]
[390788270,1760152251601,-500.0,0.00029656,9]
[390788271,1760152251610,-5548.79,0.00029656,9]
[390788272,1760152251620,-500.0,0.00029656,9]
[390788273,1760152251632,-2188.47,0.00029656,9]
[390788274,1760152251642,-500.0,0.00029656,9]
[390788275,1760152251651,-1012.08,0.00029656,9]
[390788276,1760152251660,-500.0,0.00029656,9]
[390788277,1760152251672,-914.22,0.00029656,9]
[390788278,1760152251681,-500.0,0.00029656,9]
[390788279,1760152251690,-1650.78,0.00029656,9]
[390788280,1760152251699,-500.0,0.00029656,9]
[390788281,1760152251708,-500.0,0.00029656,9]
[390788282,1760152251717,-500.0,0.00029656,9]
[390788283,1760152251726,-500.0,0.00029656,9]
[390788284,1760152251735,-500.0,0.00029656,9]
[390788285,1760152251744,-500.0,0.00029656,9]
[390788286,1760152251753,-1075.18,0.00029656,9]
[390788287,1760152251762,-500.0,0.00029656,9]
[390788288,1760152251772,-500.15082809,0.00029656,9]
[390788289,1760152251781,-500.0,0.00029656,9]
[390788290,1760152251791,-500.0,0.00029656,9]
[390788291,1760152251800,-523.36,0.00029656,9]
[390788292,1760152251811,-500.0,0.00029656,9]
[390788293,1760152251821,-500.0,0.00029656,9]
[390788294,1760152251830,-500.0,0.00029656,9]
[390788295,1760152251840,-500.0,0.00029656,9]
[390788296,1760152251849,-500.0,0.00029656,9]
[390788297,1760152251859,-500.0,0.00029656,9]
[390788298,1760152251868,-500.0,0.00029656,9]
[390788299,1760152251876,-402.76449713,0.00029656,9]
[390788300,1760152251886,-500.0,0.00029656,9]
[390788301,1760152251894,-566.63,0.00029656,9]
[390788302,1760152251906,-500.0,0.00029656,9]
[390788303,1760152251915,-500.0,0.00029656,9]
[390788304,1760152251926,-500.0,0.00029656,9]
[390788305,1760152251936,-5597.99,0.00029656,9]
[390788306,1760152251945,-544.77470764,0.00029656,9]
[390788307,1760152251954,-4265.69,0.00029656,9]
[390788308,1760152251963,-500.0,0.00029656,9]
[390788309,1760152251972,-500.0,0.00029656,9]
[390788310,1760152251981,-500.0,0.00029656,9]
[390788311,1760152251990,-500.0,0.00029656,9]
[390788312,1760152251999,-500.0,0.00029656,9]
[390788313,1760152252009,-570.6,0.00029656,9]
[390788314,1760152252018,-500.0,0.00029656,9]
[390788315,1760152252027,-500.0,0.00029656,9]
[390788316,1760152252035,-500.0,0.00029656,9]
[390788317,1760152252044,-500.0,0.00029656,9]
[390788318,1760152252053,-500.0,0.00029656,9]
[390788319,1760152252062,-646.02,0.00029656,9]
[390788320,1760152252071,-500.0,0.00029656,9]
[390788321,1760152252080,-500.0,0.00029656,9]
[390788322,1760152252090,-1065.85,0.00029656,9]
[390788323,1760152252099,-1079.1,0.00029656,9]
[390788324,1760152252109,-500.0,0.00029656,9]
[390788325,1760152252118,-500.0,0.00029656,9]
[390788326,1760152252127,-582.05,0.00029656,9]
[390788327,1760152252136,-500.0,0.00029656,9]
[390788328,1760152252145,-500.0,0.00029656,9]
[390788329,1760152252154,-1000.0,0.00029656,30]
[390788330,1760152252164,-500.0,0.00029656,9]
[390788331,1760152252174,-500.0,0.00029656,9]
[390788332,1760152252183,-500.0,0.00029656,9]
[390788333,1760152252193,-500.0,0.00029656,9]
[390788334,1760152252202,-502.67,0.00029656,9]
[390788335,1760152252211,-500.0,0.00029656,9]
[390788336,1760152252220,-500.0,0.00029656,9]
[390788337,1760152252229,-801.38,0.00029656,9]
[390788338,1760152252238,-500.0,0.00029656,9]
[390788339,1760152252247,-500.0,0.00029656,9]
[390788340,1760152252254,-500.0,0.00029656,9]
[390788341,1760152252262,-376.3784313,0.00029656,9]
[390788342,1760152252271,-500.0,0.00029656,9]
[390788343,1760152252280,-747.64,0.00029656,9]
[390788344,1760152252288,-500.0,0.00029656,9]
[390788345,1760152252297,-500.0,0.00029656,9]
[390788346,1760152252306,-500.0,0.00029656,9]
[390788347,1760152252315,-500.0,0.00029656,9]
[390788348,1760152252324,-3327.64,0.00029656,9]
[390788349,1760152252335,-621.56,0.00029656,9]
[390788350,1760152252344,-500.31556931,0.00029656,9]
[390788351,1760152252353,-500.0,0.00029656,9]
[390788352,1760152252362,-500.0,0.00029656,9]
[390788353,1760152252371,-500.0,0.00029656,9]
[390788354,1760152252381,-2319.3,0.00029656,9]
[390788355,1760152252390,-500.0,0.00029656,9]
[390788356,1760152252399,-500.0,0.00029656,9]
[390788357,1760152252409,-500.0,0.00029656,9]
[390788358,1760152252420,-522.35,0.00029656,9]
[390788359,1760152252429,-500.0,0.00029656,9]
[390788360,1760152252439,-500.0,0.00029656,9]
[390788361,1760152252450,-658.88,0.00029656,9]
[390788362,1760152252459,-500.0,0.00029656,9]
[390788363,1760152252468,-500.0,0.00029656,9]
[390788364,1760152252477,-532.04,0.00029656,9]
[390788365,1760152252488,-646.07,0.00029656,9]
[390788366,1760152252498,-500.0,0.00029656,9]
[390788367,1760152252510,-555.15,0.00029656,9]
[390788368,1760152252529,-500.0,0.00029656,9]
[390788369,1760152252540,-500.0,0.00029656,9]
[390788370,1760152252550,-500.0,0.00029656,9]
[390788371,1760152252561,-500.0,0.00029656,9]
[390788372,1760152252571,-500.0,0.00029656,9]
[390788373,1760152252581,-500.0,0.00029656,9]
[390788374,1760152252590,-400.19090194,0.00029656,9]
[390788375,1760152252600,-500.0,0.00029656,9]
[390788376,1760152252609,-500.0,0.00029656,9]
[390788377,1760152252618,-500.0,0.00029656,9]
[390788378,1760152252627,-455.32735148,0.00029656,9]
[390788379,1760152252636,-729.33,0.00029656,9]
[390788380,1760152252646,-500.0,0.00029656,9]
[390788381,1760152252655,-500.0,0.00029656,9]
[390788382,1760152252665,-500.0,0.00029656,9]
[390788383,1760152252677,-500.0,0.00029656,9]
[390788384,1760152252686,-500.0,0.00029656,9]
[390788385,1760152252695,-14955.01,0.00029657,9]
[390788386,1760152252704,-579.18,0.00029657,9]
[390788387,1760152252714,-504.2920691,0.00029657,9]
[390788388,1760152252725,-11667.65,0.00029657,9]
[390788389,1760152252735,-1340.62,0.00029657,9]
[390788390,1760152252843,-2552.38,0.00029657,9]
[390788391,1760152252852,-946.49,0.00029657,9]
[390788392,1760152252863,-687.62,0.00029657,9]
[390788393,1760152252873,-3513.33,0.00029657,9]
[390788394,1760152252883,-525.39,0.00029657,9]
[390788395,1760152252893,-1469.94,0.00029657,9]
[390788396,1760152252902,-2796.66,0.00029657,9]
[390788397,1760152252911,-2630.14,0.00029657,9]
[390788398,1760152252923,-1173.84,0.00029657,9]
[390788399,1760152252933,-500.0,0.00029657,9]
[390788400,1760152252942,-1518.45,0.00029657,9]
[390788401,1760152252951,-1768.71,0.00029657,9]
[390788402,1760152252961,-1607.97,0.00029657,9]
[390788403,1760152252970,-1978.35,0.00029657,9]
[390788404,1760152252980,-913.96,0.00029657,9]
[390788405,1760152252989,-4817.2,0.00029657,9]
[390788406,1760152252998,-1526.61,0.00029657,9]
[390788407,1760152253008,-743.19,0.00029658,9]
[390788408,1760152253017,-500.0,0.00029658,9]
[390788409,1760152253027,-2959.4,0.00029658,9]
[390788410,1760152253038,-938.23,0.00029658,9]
[390788411,1760152253048,-500.0,0.00029658,9]
[390788412,1760152253058,-500.0,0.00029658,9]
[390788413,1760152253067,-500.0,0.00029658,9]
[390788414,1760152253077,-594.07,0.00029658,9]
[390788415,1760152253086,-500.0,0.00029658,9]
[390788416,1760152253095,-1491.33,0.00029658,9]
[390788417,1760152253104,-500.0,0.00029658,9]
[390788418,1760152253114,-541.23,0.00029658,9]
[390788419,1760152253123,-1469.56,0.00029658,9]
[390788420,1760152253132,-795.05,0.00029658,9]
[390788421,1760152253141,-500.0,0.00029658,9]
[390788422,1760152253151,-468.17538903,0.00029658,9]
[390788423,1760152253160,-500.0,0.00029658,9]
[390788424,1760152253171,-500.0,0.00029658,9]
[390788425,1760152253180,-500.0,0.00029658,9]
[390788426,1760152253190,-500.0,0.00029658,9]
[390788427,1760152253200,-500.0,0.00029658,9]
[390788428,1760152253210,-500.0,0.00029658,9]
[390788429,1760152253219,-985.61,0.00029658,9]
[390788430,1760152253228,-500.0,0.00029658,9]
[390788431,1760152253237,-687.43,0.00029658,9]
[390788432,1760152253247,-2313.75,0.00029658,9]
[390788433,1760152253256,-251.7103186,0.00029658,9]
[390788434,1760152253265,-500.0,0.00029658,9]
[390788435,1760152253274,-500.0,0.00029658,9]
[390788436,1760152253284,-500.0,0.00029658,9]
[390788437,1760152253293,-793.09,0.00029658,9]
[390788438,1760152253303,-500.0,0.00029658,9]
[390788439,1760152253312,-500.0,0.00029658,9]
[390788440,1760152253321,-500.0,0.00029658,9]
[390788441,1760152253330,-500.0,0.00029658,9]
[390788442,1760152253339,-1954.09,0.00029658,9]
[390788443,1760152253349,-500.0,0.00029658,9]
[390788444,1760152253358,-500.0,0.00029658,9]
[390788445,1760152253367,-1015.25,0.00029658,9]
[390788446,1760152253376,-500.0,0.00029658,9]
[390788447,1760152253385,-500.0,0.00029658,9]
[390788448,1760152253395,-500.0,0.00029658,9]
[390788449,1760152253404,-500.0,0.00029658,9]
[390788450,1760152253414,-729.77,0.00029658,9]
[390788451,1760152253423,-500.0,0.00029658,9]
[390788452,1760152253433,-3144.45,0.00029658,9]
[390788453,1760152253442,-500.0,0.00029658,9]
[390788454,1760152253451,-500.0,0.00029658,9]
[390788455,1760152253460,-500.0,0.00029658,9]
[390788456,1760152253470,-500.0,0.00029658,9]
[390788457,1760152253479,-500.0,0.00029658,9]
[390788458,1760152253488,-1191.51,0.00029658,9]
[390788459,1760152253497,-500.0,0.00029658,9]
[390788460,1760152253515,-500.0,0.00029658,9]
[390788461,1760152253534,-610.0,0.00029658,9]
[390788462,1760152253552,-859.22,0.00029658,9]
[390788463,1760152253572,-500.0,0.00029658,9]
[390788464,1760152253591,-500.0,0.00029658,9]
[390788465,1760152253608,-1373.1,0.00029658,9]
[390788466,1760152253626,-500.0,0.00029658,9]
[390788467,1760152253640,-500.0,0.00029658,9]
[390788468,1760152253655,-749.49,0.00029658,9]
[390788469,1760152253675,-500.0,0.00029658,9]
[390788470,1760152253693,-3220.75,0.00029658,9]
[390788471,1760152253706,-500.0,0.00029658,9]
[390788472,1760152253725,-500.0,0.00029658,9]
[390788473,1760152253740,-500.0,0.00029658,9]
[390788474,1760152253755,-500.0,0.00029658,9]
[390788475,1760152253769,-500.0,0.00029658,9]
[390788476,1760152253783,-951.95,0.00029658,9]
[390788477,1760152253803,-500.0,0.00029658,9]
[390788478,1760152253819,-500.0,0.00029658,9]
[390788479,1760152253835,-500.0,0.00029658,9]
[390788480,1760152253850,-500.0,0.00029658,9]
[390788481,1760152253867,-5548.79,0.00029658,9]
[390788482,1760152253882,-2188.47,0.00029658,9]